fUSD/lending_fUSD_20250916
["ID","MTS","AMOUNT","RATE_DAILY","PERIOD"]
[385783168,1758037834812,-500.0,0.00028144,2]
[385783169,1758037834822,-800.0,0.00028219,13]
[385783170,1758037834832,-500.0,0.00028418,2]
[385783171,1758037834841,-298.26089446,0.00028449,2]
[385783172,1758037834850,-8930.39787182,0.00028463,2]
[385783173,1758037834859,-269.46084,0.0002848,2]
[385783174,1758037834869,-400.0,0.00028493,13]
[385783175,1758037834878,-150.0,0.00028534,5]
[385783176,1758037834888,-150.0,0.00028604,7]
[385783177,1758037834897,-150.0,0.00028604,7]
[385783178,1758037834907,-399.0,0.00028618,5]
[385783179,1758037834916,-150.0,0.00028618,5]
[385783180,1758037834926,-464.0,0.00028692,2]
[385783181,1758037834935,-5985.16840842,0.00028743,2]
[385783182,1758037834945,-3102.70821,0.00028757,7]
[385783183,1758037834954,-3102.70821,0.00028757,7]
[385783184,1758037834963,-3102.70821,0.00028757,7]
[385783185,1758037834973,-3102.70821,0.00028757,7]
[385783186,1758037834983,-1533.32015032,0.00028767,7]
[385783187,1758037834993,-176.0,0.00028767,14]
[385783188,1758037835002,-181.0,0.00028767,14]
[385783189,1758037835012,-152.0,0.00028791,5]
[385783190,1758037835021,-151.0,0.00028843,7]
[385783191,1758037835031,-353.73282245,0.00028843,2]
[385783192,1758037835040,-269.46084,0.0002898,2]
[385783193,1758037835049,-221.38988961,0.00029,60]
[385783194,1758037835058,-5985.16840842,0.00029008,2]
[385783195,1758037835068,-164.95400325,0.00029045,15]
[385783196,1758037835077,-150.0,0.00029106,7]
[385783197,1758037835087,-150.0,0.00029106,7]
[385783198,1758037835096,-10400.1941826,0.00029135,2]
[385783199,1758037835106,-2833.94697972,0.00029145,2]
[385783200,1758037835119,-555.05302028,0.00029145,2]
[385783201,1758037835129,-493.683,0.00029145,2]
[385783202,1758037835142,-1494.864,0.00029145,2]
[385783203,1758037835152,-1253.341,0.00029145,2]
[385783204,1758037835166,-1178.0,0.00029145,2]
[385783205,1758037835176,-898.0,0.00029145,2]
[385783206,1758037835186,-8930.39787182,0.00029199,2]
[385783207,1758037835196,-11000.0,0.000292,4]
[385783208,1758037835207,-10400.1941826,0.00029268,2]
[385783209,1758037835216,-5985.16840842,0.00029274,2]
[385783210,1758037835226,-3958.84491989,0.00029278,7]
[385783211,1758037835237,-804.41,0.00029288,2]
[385783212,1758037835246,-985.98,0.00029288,2]
[385783213,1758037835256,-283.82,0.00029314,2]
[385783214,1758037835265,-257.85,0.00029414,2]
[385783215,1758037835275,-236.24,0.00029464,2]
[385783216,1758037835284,-337.42,0.00029479,2]
[385783217,1758037835294,-411.1,0.00029479,2]
[385783218,1758037835303,-302.1,0.00029479,2]
[385783219,1758037835313,-2384.02,0.00029479,2]
[385783220,1758037835323,-153.25,0.00029479,2]
[385783221,1758037835332,-150.0,0.00029479,2]
[385783222,1758037835342,-411.1,0.00029479,2]
[385783223,1758037835351,-150.0,0.00029479,2]
[385783224,1758037835361,-269.46083,0.0002948,2]
[385783226,1758037835370,-11500.0,0.000295,4]
[385783227,1758037835380,-151.0,0.000295,7]
[385783228,1758037835390,-202.378183,0.000295,7]
[385783229,1758037835399,-1076.65712723,0.00029538,2]
[385783239,1758037838275,-564.0,0.00027137,2]
[385783240,1758037838285,-272.738045,0.000275,7]
[385783241,1758037838294,-3818.4122796,0.00029538,2]
[385783242,1758037838526,-1290.03468314,0.00029538,2]
[385783243,1758037838615,-4215.09009263,0.00029538,2]
[385783244,1758037838625,-5985.16840842,0.00029539,2]
[385783245,1758037838634,-151.0,0.00029548,7]
[385783246,1758037838644,-3102.70821,0.00029548,7]
[385783247,1758037838653,-3035.19691071,0.00029548,7]
[385783252,1758037840724,-4617.2,0.000245,5]
[385783253,1758037840736,-895.8,0.000245,5]
[385783254,1758037840744,-3910.85,0.000249,2]
[385783255,1758037840789,-2895.9588,0.000249,2]
[385783257,1758037843440,-295.55406207,0.00024784,2]
[385783258,1758037843450,-5714.86947658,0.000249,2]
[385783259,1758037843634,-0.08031818,0.000249,2]
[385783260,1758037843747,-6123.77780902,0.000249,2]
[385783261,1758037843757,-4225.0,0.0002636,2]
[385783262,1758037843766,-293.878489,0.000275,7]
[385783263,1758037843777,-67.51129929,0.00029548,7]
[385783264,1758037843786,-3102.70821,0.00029548,7]
[385783265,1758037843797,-3102.70821,0.00029548,7]
[385783266,1758037843806,-500.0,0.000296,10]
[385783267,1758037843816,-164.95400321,0.00029696,15]
[385783268,1758037843829,-1100.0,0.000297,10]
[385783269,1758037843839,-1600.0,0.000298,10]
[385783270,1758037843848,-5985.16840842,0.00029805,2]
[385783271,1758037843858,-309.29654756,0.00029818,2]
[385783272,1758037843868,-10400.1941826,0.0002989,2]
[385783273,1758037843878,-5000.0,0.000299,2]
[385783274,1758037843887,-2200.0,0.000299,10]
[385783275,1758037843896,-1820.94085998,0.000299,2]
[385783296,1758038187604,225.0,0.0001,2]
[385783297,1758038189693,225.0,0.0001,2]
[385783298,1758038189717,101.48708913,0.0001,2]
[385783310,1758038644914,460.0,0.00030137,120]
[385783313,1758038811196,2405.67,0.00030136,120]
[385783316,1758038886643,400.0,0.0003013,120]
[385783470,1758039031950,-151.0,0.00022796,2]
[385783472,1758039031960,-171.6,0.00022796,2]
[385783474,1758039031970,-242.30373804,0.00023344,2]
[385783476,1758039031980,-515.95536276,0.00024794,2]
[385783478,1758039031991,-1200.0,0.00024799,2]
[385783480,1758039032001,-300.0,0.00024799,2]
[385783482,1758039032010,-1200.0,0.00024799,2]
[385783485,1758039032020,-1000.0,0.000248,2]
[385783487,1758039032030,-151.11,0.000248,2]
[385783489,1758039032039,-151.94,0.000248,2]
[385783491,1758039032048,-152.73,0.000248,2]
[385783493,1758039032058,-25715.02220864,0.000249,2]
[385783495,1758039032069,-500.0,0.00024932,2]
[385783497,1758039032079,-5513.0,0.000257,5]
[385783499,1758039032090,-267.46074303,0.0002638,2]
[385783501,1758039032101,-500.0,0.00026395,2]
[385783503,1758039032112,-151.54898212,0.00026395,2]
[385783506,1758039032130,-1107.0,0.00026395,2]
[385783510,1758039032141,-898.0,0.00026396,2]
[385783513,1758039032152,-152.0,0.00026479,3]
[385783516,1758039032162,-1610.81881894,0.000266,2]
[385783519,1758039032173,-258.437,0.00026645,14]
[385783522,1758039032183,-400.0,0.00026871,2]
[385783525,1758039032193,-385.0,0.00026871,2]
[385783528,1758039032204,-1620.0,0.00026993,2]
[385783531,1758039032213,-151.0,0.00027,7]
[385783534,1758039032223,-154.17732811,0.00027099,4]
[385783537,1758039032232,-160.48138757,0.00027099,4]
[385783540,1758039032242,-198.5530008,0.00027099,4]
[385783543,1758039032251,-150.0,0.00027099,4]
[385783545,1758039032260,-171.76054316,0.00027099,4]
[385783547,1758039032269,-150.0,0.00027099,4]
[385783549,1758039032279,-150.0,0.00027099,4]
[385783551,1758039032288,-552.0,0.00027137,2]
[385783553,1758039032299,-150.0,0.00027157,7]
[385783555,1758039032309,-4702.25,0.00027392,2]
[385783557,1758039032318,-300.0,0.00027397,2]
[385783559,1758039032328,-2123.59,0.000274,2]
[385783561,1758039032339,-500.0,0.00027423,10]
[385783563,1758039032348,-500.0,0.00027423,10]
[385783565,1758039032358,-500.0,0.00027423,10]
[385783567,1758039032372,-500.0,0.00027423,10]
[385783569,1758039032382,-500.0,0.00027423,10]
[385783571,1758039032392,-500.0,0.00027423,10]
[385783573,1758039032402,-500.0,0.00027423,10]
[385783575,1758039032411,-500.0,0.00027423,10]
[385783577,1758039032422,-500.0,0.00027425,10]
[385783578,1758039032433,-389.00242953,0.00027425,10]
[385783579,1758039032444,-198.48,0.00027475,3]
[385783580,1758039032454,-3037.84,0.00027628,2]
[385783581,1758039032464,-151.0,0.00027671,14]
[385783582,1758039032476,-666.0,0.0002769,3]
[385783583,1758039032486,-162.31,0.00027722,30]
[385783584,1758039032496,-277.35679052,0.00027749,2]
[385783585,1758039032508,-250.0,0.00027877,2]
[385783587,1758039032519,-11488.91086874,0.00028,2]
[385783588,1758039032529,-150.0,0.00028014,2]
[385783590,1758039032539,-152.0,0.00028182,4]
[385783592,1758039032549,-2507.123488,0.00028382,2]
[385783594,1758039032559,-200.0,0.00028419,2]
[385783596,1758039032569,-170.22,0.00028634,2]
[385783599,1758039032579,-151.0,0.00028767,14]
[385783601,1758039032589,-649.53,0.00028803,2]
[385783603,1758039032598,-178.79,0.00028917,2]
[385783604,1758039032608,-1000.0,0.00029,7]
[385783605,1758039032618,-1000.0,0.00029,9]
[385783606,1758039032628,-287.61899177,0.00029118,2]
[385783607,1758039032637,-662.14,0.00029233,2]
[385783608,1758039032646,-898.0,0.00029396,2]
[385783609,1758039032656,-170.61,0.00029506,2]
[385783610,1758039032666,-200.0,0.000296,10]
[385783611,1758039032675,-983.59844548,0.00029648,2]
[385783612,1758039033240,-610.65280106,0.00029648,2]
[385783613,1758039033250,-399.0,0.000297,2]
[385783614,1758039033259,-500.0,0.000297,10]
[385783615,1758039033269,-800.0,0.000298,10]
[385783616,1758039033278,-2401.77914002,0.00029814,2]
[385783617,1758039033288,-9999.99,0.00029815,2]
[385783618,1758039033297,-150.99,0.00029815,2]
[385783619,1758039033317,-3118.62,0.00029815,2]
[385783620,1758039033332,-9999.99,0.00029815,2]
[385783621,1758039033342,-540.69,0.00029815,2]
[385783622,1758039033353,-3939.77,0.00029815,2]
[385783623,1758039033363,-999.99,0.00029815,2]
[385783624,1758039033374,-9999.99,0.00029815,2]
[385783625,1758039033384,-499.99,0.00029815,2]
[385783626,1758039033393,-4803.46,0.00029836,2]
[385783627,1758039033403,-152.0,0.00029886,5]
[385783628,1758039033413,-1100.0,0.000299,10]
[385783629,1758039033425,-2679.1193616,0.000299,2]
[385783630,1758039033435,-206.88784345,0.00029999,2]
[385783631,1758039033445,-25572.52800975,0.0003,7]
[385783632,1758039033457,-10615.07283191,0.0003,7]
[385783633,1758039033469,-19966.08948697,0.0003,7]
[385783634,1758039033480,-37957.86141589,0.0003,7]
[385783635,1758039033490,-2000.0,0.0003,2]
[385783636,1758039033503,-2000.0,0.0003,2]
[385783637,1758039033514,-2000.0,0.0003,2]
[385783638,1758039033524,-2004.58,0.0003,2]
[385783639,1758039033533,-158.0,0.0003,14]
[385783640,1758039033544,-161.4617499,0.0003,5]
[385783641,1758039033553,-1252.0,0.0003,12]
[385783642,1758039033563,-2992.58420421,0.00030024,2]
[385783643,1758039033572,-164.95400321,0.00030024,15]
[385783644,1758039033582,-5000.0,0.00030036,2]
[385783645,1758039033592,-929.05193481,0.00030036,2]
[385783646,1758039033602,-2679.11936154,0.00030067,2]
[385783647,1758039033612,-511.49321672,0.0003007,2]
[385783648,1758039033622,-150.7,0.000301,2]
[385783649,1758039033632,-150.0,0.000301,2]
[385783650,1758039033642,-152.39,0.00030109,2]
[385783651,1758039033652,-190.42980909,0.00030109,2]
[385783652,1758039033661,-4705.0,0.0003011,2]
[385783653,1758039033671,-2401.73,0.0003011,3]
[385783654,1758039033680,-136.03314653,0.00030114,2]
[385783655,1758039033692,-1604.63222875,0.00030114,2]
[385783656,1758039033776,-29688.5,0.00030114,2]
[385783659,1758039038086,-4225.0,0.00026396,2]
[385783660,1758039038095,-166.5,0.00029063,2]
[385783661,1758039038104,-14637.7474319,0.00030114,2]
[385783686,1758039040107,-4225.0,0.00029396,2]
[385783687,1758039040116,-70610.98935824,0.00030114,2]
[385783688,1758039040136,-1158.033,0.00030114,2]
[385783689,1758039040147,-1117.83396612,0.00030114,2]
[385783690,1758039040189,-20153.98084,0.00030114,2]
[385783695,1758039043051,-1202.15,0.00030114,2]
[385783696,1758039043062,-1019.71616596,0.00030114,2]
[385783969,1758039045942,-1177.0,0.00026942,2]
[385783971,1758039045952,-7479.6803105,0.00030114,2]
[385783973,1758039045964,-333.22272,0.00030114,2]
[385784325,1758039971402,1000.0,0.000199,3]
[385784334,1758040117366,1900.0,0.0002,7]
[385784353,1758040231832,-467.5679997,0.000199,3]
[385784355,1758040231990,-926.01549467,0.000199,3]
[385784356,1758040232204,-2445.12880905,0.000199,3]
[385784357,1758040232213,-300.0,0.00019999,2]
[385784358,1758040232223,-300.0,0.00019999,2]
[385784359,1758040232231,-25733.24395868,0.0002,2]
[385784360,1758040232241,-425.54006871,0.0002001,2]
[385784361,1758040232251,-904.08716357,0.00020202,2]
[385784682,1758040237834,-335.61474233,0.00020202,2]
[385784684,1758040237843,-300.0,0.00021777,2]
[385784686,1758040237853,-1167.13045103,0.00022359,2]
[385784688,1758040237862,-151.0,0.00024594,2]
[385784690,1758040237871,-250.0,0.00024594,2]
[385784692,1758040237880,-151.57,0.00024594,2]
[385784694,1758040237890,-152.35,0.00024594,2]
[385784696,1758040237900,-150.36,0.00024594,2]
[385784698,1758040237909,-151.52,0.00024594,2]
[385784700,1758040237919,-250.0,0.00024631,2]
[385784702,1758040237928,-488.8,0.00024658,2]
[385784704,1758040237938,-1056.0,0.00024719,2]
[385784706,1758040237954,-215.28293191,0.00024721,3]
[385784708,1758040237963,-200.0,0.00024885,2]
[385784710,1758040237973,-151.0,0.00024885,2]
[385784712,1758040237982,-151.0,0.00024885,2]
[385784714,1758040237991,-151.0,0.00024885,2]
[385784716,1758040238000,-151.0,0.00024885,2]
[385784718,1758040238010,-151.0,0.00024885,2]
[385784720,1758040238019,-151.0,0.00024885,2]
[385784722,1758040238030,-151.0,0.00024885,2]
[385784724,1758040238039,-151.0,0.00024885,2]
[385784726,1758040238049,-151.0,0.00024885,2]
[385784728,1758040238058,-151.0,0.00024885,2]
[385784730,1758040238068,-151.0,0.00024885,2]
[385784732,1758040238077,-298.17148204,0.00024885,2]
[385784734,1758040238088,-500.0,0.00024885,2]
[385784736,1758040238097,-500.0,0.00024885,2]
[385784738,1758040238107,-431.02347346,0.00024885,2]
[385784740,1758040238116,-500.0,0.00024899,2]
[385784742,1758040238126,-25154.21379888,0.000249,2]
[385784743,1758040238135,-156.587,0.00025142,2]
[385784744,1758040238144,-3042.1026303,0.00025347,2]
[385784745,1758040238156,-200.0,0.00025433,2]
[385784746,1758040238165,-488.8,0.00025654,2]
[385784747,1758040238174,-296.20628099,0.0002569,2]
[385784748,1758040238184,-1388.81679968,0.00026221,2]
[385784749,1758040238196,-1000.0,0.00026441,2]
[385784750,1758040238205,-1000.0,0.00026441,2]
[385784751,1758040238214,-151.0,0.00026441,2]
[385784752,1758040238224,-1000.0,0.00026441,2]
[385784754,1758040238233,-151.0,0.00026441,2]
[385784756,1758040238243,-269.54820062,0.00026441,2]
[385784763,1758040238298,-628.51745644,0.00026441,2]
[385784765,1758040238307,-151.0,0.00026441,2]
[385784767,1758040238317,-151.0,0.00026441,2]
[385784769,1758040238327,-151.0,0.00026441,2]
[385784771,1758040238336,-151.0,0.00026441,2]
[385784773,1758040238345,-267.46074303,0.00026441,2]
[385784775,1758040238355,-151.0,0.00026441,2]
[385784777,1758040238364,-151.0,0.00026441,2]
[385784779,1758040238373,-151.0,0.00026441,2]
[385784781,1758040238382,-151.0,0.00026441,2]
[385784783,1758040238391,-151.0,0.00026441,2]
[385784785,1758040238401,-500.0,0.00026441,2]
[385784787,1758040238410,-500.0,0.00026441,2]
[385784789,1758040238419,-500.0,0.00026441,2]
[385784791,1758040238428,-500.0,0.00026441,2]
[385784793,1758040238438,-500.0,0.00026441,2]
[385784795,1758040238449,-264.39538265,0.00026441,2]
[385784797,1758040238459,-439.95014587,0.00026441,2]
[385784799,1758040238468,-500.0,0.00026441,2]
[385784801,1758040238477,-500.0,0.00026441,2]
[385784803,1758040238486,-500.0,0.00026441,2]
[385784805,1758040238495,-500.0,0.00026441,2]
[385784807,1758040238504,-500.0,0.00026441,2]
[385784809,1758040238514,-500.0,0.00026441,2]
[385784811,1758040238524,-500.0,0.00026441,2]
[385784813,1758040238533,-250.0,0.00026441,2]
[385784815,1758040238542,-250.0,0.00026441,2]
[385784817,1758040238552,-250.0,0.00026441,2]
[385784819,1758040238562,-150.0,0.0002652,7]
[385784821,1758040238571,-488.8,0.0002665,2]
[385784823,1758040238581,-389.62015842,0.00026652,3]
[385784825,1758040238591,-593.22319087,0.00026778,2]
[385784827,1758040238600,-4225.0,0.00026942,2]
[385784829,1758040238609,-250.0,0.00027053,2]
[385784831,1758040238619,-258.89805315,0.00027053,3]
[385784833,1758040238628,-553.0,0.00027137,2]
[385784836,1758040238639,-544.05,0.00027277,2]
[385784838,1758040238650,-666.0,0.00027289,3]
[385784840,1758040238659,-170.22,0.00027369,2]
[385784842,1758040238669,-4032.65902738,0.0002739,2]
[385784844,1758040238679,-7966.11758634,0.0002739,2]
[385784846,1758040238688,-3180.28805681,0.0002739,2]
[385784848,1758040238701,-500.0,0.00027397,10]
[385784850,1758040238710,-500.0,0.00027397,10]
[385784852,1758040238720,-500.0,0.00027397,10]
[385784854,1758040238729,-500.0,0.00027397,10]
[385784856,1758040238738,-500.0,0.00027397,10]
[385784858,1758040238748,-500.0,0.00027397,10]
[385784860,1758040238757,-500.0,0.00027397,10]
[385784862,1758040238767,-500.0,0.00027397,10]
[385784864,1758040238776,-1911.23,0.000274,2]
[385784866,1758040238786,-206.75,0.0002748,16]
[385784868,1758040238795,-488.8,0.00027647,2]
[385784870,1758040238804,-150.0,0.00027735,2]
[385784872,1758040238815,-150.0,0.00027735,2]
[385784874,1758040238825,-277.35679052,0.0002781,2]
[385784876,1758040238834,-250.0,0.00028261,2]
[385784878,1758040238844,-162.31,0.00028289,30]
[385784880,1758040238854,-206.0,0.0002844,2]
[385784882,1758040238863,-383.0,0.000286,2]
[385784884,1758040238873,-488.8,0.00028643,3]
[385784886,1758040238882,-1300.0,0.00028682,7]
[385784888,1758040238893,-554.43,0.00028685,2]
[385784890,1758040238902,-2414.94,0.00028685,2]
[385784892,1758040238911,-171.84,0.00028685,2]
[385784894,1758040238920,-150.0,0.00028692,2]
[385784896,1758040238929,-3095.42236751,0.00028908,2]
[385784898,1758040238938,-150.0,0.00028966,2]
[385784900,1758040238952,-23833.84742033,0.00029,2]
[385784902,1758040238961,-206.0,0.0002914,2]
[385784904,1758040238970,-150.0,0.0002914,2]
[385784906,1758040238979,-3095.42236749,0.00029155,2]
[385784908,1758040238988,-287.61899177,0.00029179,2]
[385784910,1758040238998,-204.40102413,0.0002924,2]
[385784912,1758040239007,-154.80343053,0.00029342,2]
[385784914,1758040239017,-3095.42236749,0.00029402,2]
[385784916,1758040239028,-150.0,0.00029414,2]
[385784918,1758040239038,-1300.0,0.00029504,7]
[385784920,1758040239047,-300.0,0.000296,10]
[385784922,1758040239056,-488.8,0.00029639,4]
[385784924,1758040239065,-170.4332526,0.00029648,2]
[385784926,1758040239075,-3095.42236749,0.00029649,2]
[385784928,1758040239084,-150.0,0.00029688,2]
[385784930,1758040239094,-700.0,0.000297,10]
[385784932,1758040239103,-376.0,0.0002978,2]
[385784934,1758040239112,-1100.0,0.000298,10]
[385784936,1758040239123,-2064.71,0.00029804,2]
[385784938,1758040239132,-150.99,0.00029815,2]
[385784940,1758040239141,-999.99,0.00029815,2]
[385784942,1758040239150,-4226.11,0.00029815,2]
[385784944,1758040239159,-499.99,0.00029815,2]
[385784946,1758040239168,-4498.54,0.00029815,2]
[385784948,1758040239178,-4129.36,0.0002984,2]
[385784950,1758040239187,-206.0,0.0002985,2]
[385784952,1758040239198,-1425.0,0.00029873,2]
[385784954,1758040239207,-1000.0,0.00029874,2]
[385784956,1758040239216,-3095.42236749,0.00029896,2]
[385784958,1758040239225,-52690.60427029,0.000299,2]
[385784960,1758040239234,-1000.0,0.000299,2]
[385784962,1758040239243,-1500.0,0.000299,10]
[385784964,1758040239252,-1000.0,0.00029909,2]
[385784966,1758040239262,-1000.0,0.0002991,2]
[385784968,1758040239270,-1425.0,0.00029918,2]
[385784970,1758040239280,-4225.0,0.00029942,2]
[385784972,1758040239289,-150.0,0.00029962,2]
[385784974,1758040239298,-1130.2875062,0.00029971,2]
[385784976,1758040239307,-8591.2921197,0.00029971,2]
[385784978,1758040239316,-504.00350006,0.00029977,2]
[385784980,1758040239325,-152.0,0.0003,14]
[385784982,1758040239334,-19514.13409259,0.0003,2]
[385784984,1758040239344,-814.58208156,0.0003,2]
[385784986,1758040239386,-1782.61330665,0.0003,2]
[385784988,1758040239396,-983.05206423,0.0003,2]
[385784990,1758040239405,-602.2617745,0.0003,2]
[385784992,1758040239415,-1425.0,0.00030001,2]
[385784993,1758040239424,-158.48554221,0.00030003,15]
[385784995,1758040239434,-2500.0,0.00030004,2]
[385784997,1758040239444,-3731.72551295,0.00030005,2]
[385785000,1758040239453,-1425.0,0.00030014,2]
[385785002,1758040239462,-796.33022982,0.00030015,2]
[385785004,1758040239471,-300.0,0.00030031,2]
[385785006,1758040239480,-1000.0,0.00030034,2]
[385785008,1758040239490,-5000.0,0.00030035,2]
[385785010,1758040239500,-421.98540281,0.00030036,2]
[385785012,1758040239509,-1000.0,0.00030039,2]
[385785014,1758040239518,-1000.0,0.00030076,2]
[385785016,1758040239527,-152.61,0.00030094,2]
[385785018,1758040239536,-1000.0,0.00030098,2]
[385785020,1758040239546,-900.0,0.000301,8]
[385785022,1758040239555,-3792.65843262,0.00030103,2]
[385785024,1758040239564,-151.0,0.00030103,7]
[385785026,1758040239573,-151.0,0.00030103,7]
[385785028,1758040239582,-151.0,0.00030103,7]
[385785030,1758040239592,-151.0,0.00030103,7]
[385785032,1758040239601,-151.0,0.00030103,7]
[385785034,1758040239611,-153.571011,0.00030103,7]
[385785036,1758040239620,-151.0,0.00030103,7]
[385785038,1758040239630,-151.0,0.00030103,7]
[385785040,1758040239639,-151.0,0.00030103,7]
[385785042,1758040239649,-152.610856,0.00030103,7]
[385785044,1758040239658,-151.0,0.00030103,7]
[385785046,1758040239667,-151.86463,0.00030103,7]
[385785048,1758040239677,-151.0,0.00030103,7]
[385785050,1758040239686,-151.0,0.00030103,7]
[385785052,1758040239696,-151.0,0.00030103,7]
[385785053,1758040239705,-151.0,0.00030103,7]
[385785055,1758040239716,-162.464967,0.00030103,7]
[385785057,1758040239725,-151.0,0.00030103,7]
[385785059,1758040239734,-151.0,0.00030103,7]
[385785061,1758040239743,-151.0,0.00030103,7]
[385785063,1758040239753,-151.0,0.00030103,7]
[385785065,1758040239762,-152.804255,0.00030103,7]
[385785067,1758040239771,-153.374346,0.00030103,7]
[385785069,1758040239781,-152.803697,0.00030103,7]
[385785071,1758040239790,-151.0,0.00030103,7]
[385785073,1758040239800,-567492.96444474,0.00030103,2]
[385785076,1758040239810,-244404.563291,0.00030104,2]
[385785078,1758040239820,-112648.563984,0.00030104,2]
[385785080,1758040239829,-10183.5234705,0.00030104,2]
[385785081,1758040239840,-151.0,0.00030104,7]
[385785082,1758040239849,-151.0,0.00030104,7]
[385785083,1758040239859,-151.0,0.00030104,7]
[385785084,1758040239869,-151.0,0.00030104,7]
[385785085,1758040239878,-203.827112,0.00030104,7]
[385785086,1758040239888,-155.323381,0.00030104,7]
[385785087,1758040239898,-192.493297,0.00030104,7]
[385785088,1758040239908,-151.0,0.00030104,7]
[385785089,1758040239917,-151.0,0.00030104,7]
[385785090,1758040239927,-152.592364,0.00030104,7]
[385785091,1758040239937,-151.0,0.00030104,7]
[385785092,1758040239948,-151.0,0.00030104,7]
[385785093,1758040239960,-297.66576,0.00030104,7]
[385785094,1758040239969,-151.0,0.00030104,7]
[385785095,1758040239978,-151.0,0.00030104,7]
[385785096,1758040239987,-151.0,0.00030104,7]
[385785097,1758040239997,-151.0,0.00030104,7]
[385785098,1758040240007,-151.0,0.00030104,7]
[385785099,1758040240016,-247.597216,0.00030104,7]
[385785100,1758040240026,-151.0,0.00030104,7]
[385785101,1758040240036,-8046.32599885,0.00030105,2]
[385785102,1758040240047,-190.4298091,0.00030106,2]
[385785103,1758040240058,-10183.5234705,0.00030107,2]
[385785104,1758040240068,-2064.68,0.0003011,3]
[385785105,1758040240079,-8046.32599885,0.00030111,2]
[385785106,1758040240088,-151.0,0.00030114,7]
[385785107,1758040240098,-151.0,0.00030114,7]
[385785108,1758040240107,-151.0,0.00030114,7]
[385785109,1758040240117,-151.0,0.00030114,7]
[385785110,1758040240126,-151.0,0.00030114,7]
[385785111,1758040240136,-151.0,0.00030114,7]
[385785112,1758040240145,-151.0,0.00030114,7]
[385785113,1758040240155,-151.0,0.00030114,7]
[385785114,1758040240165,-155.357353,0.00030114,7]
[385785115,1758040240174,-151.0,0.00030114,7]
[385785116,1758040240184,-152.80332,0.00030114,7]
[385785117,1758040240194,-151.0,0.00030114,7]
[385785118,1758040240204,-152.867409,0.00030114,7]
[385785119,1758040240213,-151.0,0.00030114,7]
[385785120,1758040240224,-153.974348,0.00030114,7]
[385785121,1758040240233,-151.0,0.00030114,7]
[385785122,1758040240242,-154.734567,0.00030114,7]
[385785123,1758040240252,-151.0,0.00030114,7]
[385785124,1758040240261,-151.0,0.00030114,7]
[385785126,1758040240271,-151.0,0.00030114,7]
[385785129,1758040240283,-281.325046,0.00030114,7]
[385785131,1758040240292,-151.0,0.00030114,7]
[385785133,1758040240302,-198.753053,0.00030114,7]
[385785135,1758040240311,-151.0,0.00030114,7]
[385785136,1758040240320,-191.7432,0.00030114,7]
[385785138,1758040240329,-151.0,0.00030114,7]
[385785140,1758040240339,-191.7432,0.00030114,7]
[385785142,1758040240348,-151.0,0.00030114,7]
[385785144,1758040240357,-191.7432,0.00030114,7]
[385785146,1758040240367,-151.0,0.00030114,7]
[385785148,1758040240376,-191.7432,0.00030114,7]
[385785149,1758040240385,-151.0,0.00030114,7]
[385785150,1758040240395,-151.0,0.00030114,7]
[385785152,1758040240404,-200.0,0.00030114,2]